[Event "FIDE WYCC Open U14 2023"]
[Site "Montesilvano"]
[Date "2023.11.18"]
[Round "6.29"]
[White "Asikainen, Eeli"]
[Black "Zhang, Kendrick Botong"]
[Result "*"]
[WhiteElo "2081"]
[BlackElo "1876"]
[Annotator "NA"]
[PlyCount "41"]
[EventDate "2023.11.13"]
[EventType "swiss"]
[EventCountry "ITA"]
[SourceTitle "playchess.com"]
[Source "ChessBase"]
[SourceQuality "1"]
[TimeControl "40/5400+30:1800+30"]

1. e4 {[%emt 0:00:02]} c5 {[%emt 0:00:07]} 2. Nf3 {[%emt 0:00:05]} e6 {[%emt 0:00:08]} 3. d4 {[%emt 0:00:08]} cxd4 {[%emt 0:00:09]} 4. Nxd4 {[%emt 0:00:07]} Nc6 {[%emt 0:00:05]} 5. Nc3 {[%emt 0:00:12]} Qc7 {[%emt 0:00:06]} 6. g4 {[%emt 0:00:27]} a6 {[%emt 0:00:18]} 7. Be3 {[%emt 0:00:12]} Nxd4 {[%emt 0:00:19]} 8. Qxd4 {[%emt 0:00:46]} b5 {[%emt 0:00:37]} 9. O-O-O {[%emt 0:03:17]} Bb7 {[%emt 0:05:08]} 10. f3 {[%emt 0:14:39]} Rc8 {[%emt 0:04:57]} 11. Qd2 {[%emt 0:08:54]} Bb4 {[%emt 0:27:19]} 12. Bd4 {[%emt 0:07:01]} f6 {[%emt 0:03:00]} 13. a3 {[%emt 0:13:38]} Bd6 {[%emt 0:27:08]} 14. Ne2 {[%emt 0:16:18]} Ne7 {[%emt 0:13:31]} 15. g5 {[%emt 0:03:39]} Nc6 {[%emt 0:05:09]} 16. Bc3 {[%emt 0:07:18]} Be5 {[%emt 0:03:23]} 17. gxf6 {[%emt 0:01:58]} Bxf6 {[%emt 0:02:44]} 18. Bxf6 {[%emt 0:05:00]} gxf6 {[%emt 0:00:06]} 19. Qh6 {[%emt 0:03:18]} Ne5 {[%emt 0:00:55]} 20. c3 {[%emt 0:06:01]} Kf7 {[%emt 0:02:07]} 21. Rg1 {[%emt 0:01:22]} *

[Event "FIDE WYCC Open U14 2023"]
[Site "Montesilvano"]
[Date "2023.11.18"]
[Round "6.30"]
[White "Kuziev, Miraziz"]
[Black "Zhang, Brian"]
[Result "*"]
[WhiteElo "2053"]
[BlackElo "1867"]
[Annotator "NA"]
[PlyCount "92"]
[EventDate "2023.11.13"]
[EventType "swiss"]
[EventCountry "ITA"]
[SourceTitle "playchess.com"]
[Source "ChessBase"]
[SourceQuality "1"]
[TimeControl "40/5400+30:1800+30"]

1. d4 {[%emt 0:04:13]} d5 {[%emt 0:00:21]} 2. c4 {[%emt 0:00:07]} c6 {[%emt 0:00:28]} 3. Nf3 {[%emt 0:00:04]} Nf6 {[%emt 0:00:39]} 4. e3 {[%emt 0:00:06]} e6 {[%emt 0:09:20]} 5. Bd3 {[%emt 0:00:09]} dxc4 {[%emt 0:07:15]} 6. Bxc4 {[%emt 0:00:07]} b5 {[%emt 0:00:51]} 7. Bd3 {[%emt 0:01:08]} a6 {[%emt 0:01:35]} 8. a4 {[%emt 0:00:17]} b4 {[%emt 0:05:37]} 9. Qc2 {[%emt 0:02:45]} Bb7 {[%emt 0:04:27]} 10. O-O {[%emt 0:00:08]} Nbd7 {[%emt 0:04:19]} 11. e4 {[%emt 0:06:10]} Be7 {[%emt 0:08:29]} 12. Re1 {[%emt 0:00:09]} c5 {[%emt 0:10:27]} 13. d5 {[%emt 0:00:12]} exd5 {[%emt 0:07:14]} 14. exd5 {[%emt 0:00:05]} O-O {[%emt 0:04:01]} 15. Rd1 {[%emt 0:05:16]} Nb6 {[%emt 0:08:22]} 16. Bg5 {[%emt 0:02:08]} Nbxd5 {[%emt 0:08:56]} 17. Bxf6 {[%emt 0:00:15]} Bxf6 {[%emt 0:11:24]} 18. Bxh7+ {[%emt 0:00:07]} Kh8 {[%emt 0:00:06]} 19. Be4 {[%emt 0:00:04]} Qd6 {[%emt 0:00:50]} 20. Nbd2 {[%emt 0:00:40]} Rfd8 {[%emt 0:01:50]} 21. Nc4 {[%emt 0:04:17]} Qc7 {[%emt 0:01:55]} 22. Qb3 {[%emt 0:07:15]} Kg8 {[%emt 0:02:12]} 23. a5 {[%emt 0:04:51]} Qf4 {[%emt 0:00:43]} 24. Re1 {[%emt 0:02:27]} Re8 {[%emt 0:00:29]} 25. Nb6 {[%emt 0:08:30]} Rxe4 {[%emt 0:00:36]} 26. Nxa8 {[%emt 0:00:03]} Bxa8 {[%emt 0:00:33]} 27. Rxe4 {[%emt 0:00:08]} Qxe4 {[%emt 0:00:08]} 28. Re1 {[%emt 0:00:02]} Qf5 {[%emt 0:00:50]} 29. Qc4 {[%emt 0:09:54]} Nc7 {[%emt 0:00:23]} 30. Re3 {[%emt 0:00:27]} Qd5 {[%emt 0:00:36]} 31. Qg4 {[%emt 0:00:21]} Ne6 {[%emt 0:00:27]} 32. h4 {[%emt 0:00:11]} g6 {[%emt 0:00:33]} 33. Ng5 {[%emt 0:00:43]} Bd4 {[%emt 0:00:31]} 34. Re2 {[%emt 0:01:25]} Nxg5 {[%emt 0:00:28]} 35. hxg5 {[%emt 0:01:29]} Bc6 {[%emt 0:00:26]} 36. Kh2 {[%emt 0:02:32]} Kg7 {[%emt 0:00:22]} 37. f4 {[%emt 0:02:06]} Bd7 {[%emt 0:00:32]} 38. Qh4 {[%emt 0:00:14]} Be6 {[%emt 0:00:36]} 39. b3 {[%emt 0:00:54]} Qf5 {[%emt 0:00:37]} 40. Re1 {[%emt 0:00:00]} Qg4 {[%emt 0:00:00]} 41. Qxg4 {[%emt 0:04:48]} Bxg4 {[%emt 0:00:41]} 42. Re7 {[%emt 0:00:00]} Be6 {[%emt 0:02:35]} 43. Ra7 {[%emt 0:00:05]} c4 {[%emt 0:00:24]} 44. Rxa6 {[%emt 0:01:28]} cxb3 {[%emt 0:00:35]} 45. Rb6 {[%emt 0:00:04]} Bxb6 {[%emt 0:00:17]} 46. axb6 {[%emt 0:00:03]} Bc8 {[%emt 0:00:10]} *

[Event "FIDE WYCC Open U14 2023"]
[Site "Montesilvano"]
[Date "2023.11.18"]
[Round "6.31"]
[White "Morkunas, Gustas"]
[Black "Hernandez Mendez, Iker"]
[Result "1-0"]
[ECO "B34"]
[WhiteElo "2052"]
[BlackElo "1919"]
[Annotator "NA"]
[PlyCount "55"]
[EventDate "2023.11.13"]
[EventType "swiss"]
[EventCountry "ITA"]
[SourceTitle "playchess.com"]
[Source "ChessBase"]
[SourceQuality "1"]
[TimeControl "40/5400+30:1800+30"]

1. e4 {[%emt 0:00:05]} c5 {[%emt 0:00:09]} 2. Nf3 {[%emt 0:00:11]} Nc6 {[%emt 0:00:08]} 3. d4 {[%emt 0:00:05]} cxd4 {[%emt 0:00:08]} 4. Nxd4 {[%emt 0:00:04]} g6 {[%emt 0:00:08]} 5. Nc3 {[%emt 0:00:06]} Bg7 {[%emt 0:00:07]} 6. Nb3 {[%emt 0:00:12]} Bxc3+ {[%emt 0:00:33]} 7. bxc3 {[%emt 0:00:16]} Nf6 {[%emt 0:00:08]} 8. Bd3 {[%emt 0:06:32]} d5 {[%emt 0:01:06]} 9. exd5 {[%emt 0:01:06]} Qxd5 {[%emt 0:00:55]} 10. O-O {[%emt 0:01:10]} O-O {[%emt 0:00:53]} 11. c4 {[%emt 0:01:58]} Qd6 {[%emt 0:02:10]} 12. h3 {[%emt 0:04:44]} Rd8 {[%emt 0:08:06]} 13. Bb2 {[%emt 0:08:33]} b6 {[%emt 0:16:38]} 14. Qe2 {[%emt 0:07:05]} Bb7 {[%emt 0:07:07]} 15. Rad1 {[%emt 0:01:03]} Qc7 {[%emt 0:03:41]} 16. Rfe1 {[%emt 0:02:25]} Rd6 {[%emt 0:05:18]} 17. Qd2 {[%emt 0:05:41]} Rad8 {[%emt 0:03:54]} 18. c5 {[%emt 0:07:50]} R6d7 {[%emt 0:03:57]} 19. Qc3 {[%emt 0:07:26]} Nd4 {[%emt 0:04:14]} 20. Nxd4 {[%emt 0:05:28]} Rxd4 {[%emt 0:00:21]} 21. cxb6 {[%emt 0:00:32]} Qxb6 {[%emt 0:08:56]} 22. Rxe7 {[%emt 0:06:03]} Rf4 {[%emt 0:10:57]} 23. Re3 {[%emt 0:04:13]} Rdd4 {[%emt 0:05:52]} 24. Rde1 {[%emt 0:02:12]} h5 {[%emt 0:09:34]} 25. Qb3 {[%emt 0:13:04]} Rb4 {[%emt 0:00:56]} 26. Re8+ {[%emt 0:00:13]} Kg7 {[%emt 0:00:16]} 27. Qxf7+ {[%emt 0:00:12]} Kxf7 {[%emt 0:00:26]} 28. R1e7# {[%emt 0:00:06]} 1-0

[Event "FIDE WYCC Open U14 2023"]
[Site "Montesilvano"]
[Date "2023.11.18"]
[Round "6.32"]
[White "La Barbera, Manfredi"]
[Black "Boci, Mateo"]
[Result "0-1"]
[ECO "B31"]
[WhiteElo "2043"]
[BlackElo "1832"]
[Annotator "NA"]
[PlyCount "90"]
[EventDate "2023.11.13"]
[EventType "swiss"]
[EventCountry "ITA"]
[SourceTitle "playchess.com"]
[Source "ChessBase"]
[SourceQuality "1"]
[TimeControl "40/5400+30:1800+30"]

1. e4 {[%emt 0:00:11]} c5 {[%emt 0:00:02]} 2. Nf3 {[%emt 0:00:13]} Nc6 {[%emt 0:00:06]} 3. Bb5 {[%emt 0:00:13]} g6 {[%emt 0:00:28]} 4. O-O {[%emt 0:00:11]} Bg7 {[%emt 0:00:13]} 5. Re1 {[%emt 0:00:17]} e5 {[%emt 0:00:07]} 6. b4 {[%emt 0:00:23]} Nxb4 {[%emt 0:00:57]} 7. Bb2 {[%emt 0:00:11]} a6 {[%emt 0:00:10]} 8. a3 {[%emt 0:00:14]} axb5 {[%emt 0:00:11]} 9. axb4 {[%emt 0:00:06]} Rxa1 {[%emt 0:00:10]} 10. Bxa1 {[%emt 0:00:01]} cxb4 {[%emt 0:00:02]} 11. Qe2 {[%emt 0:00:56]} d6 {[%emt 0:03:52]} 12. Qxb5+ {[%emt 0:15:52]} Qd7 {[%emt 0:01:09]} 13. Qxb4 {[%emt 0:01:52]} Ne7 {[%emt 0:01:22]} 14. d4 {[%emt 0:22:42]} exd4 {[%emt 0:04:32]} 15. Nxd4 {[%emt 0:14:16]} O-O {[%emt 0:04:52]} 16. Na3 {[%emt 0:05:38]} d5 {[%emt 0:04:14]} 17. Nab5 {[%emt 0:06:37]} Nc6 {[%emt 0:17:54]} 18. Nxc6 {[%emt 0:02:56]} bxc6 {[%emt 0:01:18]} 19. Bxg7 {[%emt 0:01:30]} Kxg7 {[%emt 0:00:05]} 20. Nd6 {[%emt 0:08:12]} Rd8 {[%emt 0:02:15]} 21. Qd4+ {[%emt 0:02:23]} Kg8 {[%emt 0:01:13]} 22. e5 {[%emt 0:00:10]} Qc7 {[%emt 0:01:07]} 23. Ra1 {[%emt 0:03:19]} Be6 {[%emt 0:01:05]} 24. Qc5 {[%emt 0:02:47]} Rb8 {[%emt 0:01:52]} 25. h4 {[%emt 0:01:01]} Qb6 {[%emt 0:00:32]} 26. Qxb6 {[%emt 0:01:47]} Rxb6 {[%emt 0:00:01]} 27. Ra8+ {[%emt 0:00:01]} Kg7 {[%emt 0:00:03]} 28. Ne8+ {[%emt 0:00:13]} Kh6 {[%emt 0:01:02]} 29. Nf6 {[%emt 0:00:37]} g5 {[%emt 0:00:55]} 30. Rg8 {[%emt 0:01:08]} gxh4 {[%emt 0:01:10]} 31. g4 {[%emt 0:00:14]} hxg3 {[%emt 0:00:13]} 32. fxg3 {[%emt 0:00:01]} Bf5 {[%emt 0:00:20]} 33. g4 {[%emt 0:01:19]} Bg6 {[%emt 0:00:27]} 34. Kh2 {[%emt 0:00:05]} Rb1 {[%emt 0:03:38]} 35. Kg3 {[%emt 0:00:24]} d4 {[%emt 0:02:17]} 36. Nh5 {[%emt 0:05:02]} Re1 {[%emt 0:01:54]} 37. Rd8 {[%emt 0:01:41]} Bxh5 {[%emt 0:01:17]} 38. gxh5 {[%emt 0:00:04]} Rxe5 {[%emt 0:00:10]} 39. Rxd4 Kxh5 {[%emt 0:00:12]} 40. Kf4 {[%emt 0:00:00]} Rc5 {[%emt 0:00:00]} 41. Rd2 {[%emt 0:01:01]} Kg6 {[%emt 0:00:21]} 42. Rg2+ {[%emt 0:00:05]} Kf6 {[%emt 0:00:07]} 43. Rh2 {[%emt 0:00:05]} h5 {[%emt 0:00:09]} 44. Ke3 {[%emt 0:00:09]} Kg6 {[%emt 0:00:35]} 45. Kd4 {[%emt 0:00:05]} Rg5 {[%emt 0:00:07]} 0-1

[Event "FIDE WYCC Open U14 2023"]
[Site "Montesilvano"]
[Date "2023.11.18"]
[Round "6.33"]
[White "Pleschke, Julius Jonas"]
[Black "Sheahan, Gavin"]
[Result "1/2-1/2"]
[ECO "A45"]
[WhiteElo "2024"]
[BlackElo "1807"]
[Annotator "NA"]
[PlyCount "208"]
[EventDate "2023.11.13"]
[EventType "swiss"]
[EventCountry "ITA"]
[SourceTitle "playchess.com"]
[Source "ChessBase"]
[SourceQuality "1"]
[TimeControl "40/5400+30:1800+30"]

1. d4 {[%emt 0:00:12]} Nf6 {[%emt 0:00:31]} 2. Nc3 {[%emt 0:00:19]} d5 {[%emt 0:00:12]} 3. Bf4 {[%emt 0:00:06]} a6 {[%emt 0:00:08]} 4. e3 {[%emt 0:00:32]} c5 {[%emt 0:00:07]} 5. dxc5 {[%emt 0:00:14]} e6 {[%emt 0:00:05]} 6. Na4 {[%emt 0:00:57]} Bxc5 {[%emt 0:00:28]} 7. Nxc5 {[%emt 0:00:06]} Qa5+ {[%emt 0:00:06]} 8. c3 {[%emt 0:00:02]} Qxc5 {[%emt 0:00:04]} 9. Nf3 {[%emt 0:00:12]} Nbd7 {[%emt 0:02:40]} 10. Bd3 {[%emt 0:02:52]} O-O {[%emt 0:02:08]} 11. O-O {[%emt 0:01:02]} Qe7 {[%emt 0:03:26]} 12. Ne5 {[%emt 0:01:41]} Nxe5 {[%emt 0:00:47]} 13. Bxe5 {[%emt 0:00:06]} Nd7 {[%emt 0:00:14]} 14. Bg3 {[%emt 0:00:05]} Nc5 {[%emt 0:02:19]} 15. Bc2 {[%emt 0:02:09]} Rd8 {[%emt 0:09:32]} 16. Qd4 {[%emt 0:12:17]} b5 {[%emt 0:05:39]} 17. h4 {[%emt 0:05:53]} f6 {[%emt 0:06:39]} 18. f3 {[%emt 0:19:22]} e5 {[%emt 0:03:04]} 19. Qd2 {[%emt 0:01:20]} Be6 {[%emt 0:05:57]} 20. a4 {[%emt 0:07:30]} Nd7 {[%emt 0:06:10]} 21. Qd3 {[%emt 0:05:20]} f5 {[%emt 0:04:54]} 22. axb5 {[%emt 0:02:25]} axb5 {[%emt 0:00:14]} 23. b4 {[%emt 0:01:12]} Rac8 {[%emt 0:04:10]} 24. Bb3 {[%emt 0:02:55]} Qd6 {[%emt 0:03:07]} 25. Rfd1 {[%emt 0:03:50]} f4 {[%emt 0:02:56]} 26. Bf2 {[%emt 0:02:21]} fxe3 {[%emt 0:01:20]} 27. Bxe3 {[%emt 0:00:25]} Nf6 {[%emt 0:03:43]} 28. Bg5 {[%emt 0:05:04]} Qc6 {[%emt 0:02:08]} 29. Rac1 {[%emt 0:02:16]} Rd7 {[%emt 0:04:03]} 30. Qe3 {[%emt 0:02:49]} Qd6 {[%emt 0:05:05]} 31. Re1 {[%emt 0:01:29]} e4 {[%emt 0:04:14]} 32. Bxf6 {[%emt 0:00:33]} gxf6 {[%emt 0:00:03]} 33. fxe4 {[%emt 0:00:41]} dxe4 {[%emt 0:00:07]} 34. Bxe6+ {[%emt 0:00:13]} Qxe6 {[%emt 0:00:01]} 35. Qxe4 {[%emt 0:00:36]} Qxe4 {[%emt 0:00:02]} 36. Rxe4 {[%emt 0:00:01]} Rdc7 {[%emt 0:03:05]} 37. h5 {[%emt 0:03:39]} Rxc3 {[%emt 0:01:15]} 38. Rxc3 {[%emt 0:00:27]} Rxc3 {[%emt 0:00:02]} 39. Re8+ {[%emt 0:00:33]} Kg7 {[%emt 0:01:06]} 40. Rb8 {[%emt 0:00:00]} Kh6 {[%emt 0:00:00]} 41. Rxb5 {[%emt 0:01:20]} Rb3 {[%emt 0:01:54]} 42. Kh2 {[%emt 0:00:51]} f5 {[%emt 0:00:32]} 43. Rxf5 {[%emt 0:01:35]} Rxb4 {[%emt 0:00:08]} 44. Kh3 {[%emt 0:00:51]} Kg7 {[%emt 0:01:05]} 45. Ra5 {[%emt 0:02:46]} h6 {[%emt 0:00:56]} 46. Ra6 {[%emt 0:02:11]} Rc4 {[%emt 0:00:13]} 47. g4 {[%emt 0:01:05]} Rb4 {[%emt 0:00:11]} 48. Kh4 {[%emt 0:02:01]} Rc4 {[%emt 0:00:13]} 49. Ra7+ {[%emt 0:00:10]} Kh8 {[%emt 0:00:08]} 50. Kg3 {[%emt 0:04:29]} Rb4 {[%emt 0:00:35]} 51. Re7 {[%emt 0:00:19]} Kg8 {[%emt 0:00:45]} 52. Kf3 {[%emt 0:02:58]} Ra4 {[%emt 0:00:40]} 53. Re4 {[%emt 0:00:17]} Ra5 {[%emt 0:00:16]} 54. Kf4 {[%emt 0:00:02]} Kf7 {[%emt 0:00:23]} 55. Rb4 {[%emt 0:00:42]} Kf6 {[%emt 0:00:39]} 56. Rb6+ {[%emt 0:00:36]} Kg7 {[%emt 0:00:08]} 57. Rb7+ {[%emt 0:00:06]} Kg8 {[%emt 0:01:03]} 58. Re7 {[%emt 0:01:00]} Rb5 {[%emt 0:01:00]} 59. Re5 {[%emt 0:00:15]} Rb1 {[%emt 0:00:59]} 60. Ra5 {[%emt 0:01:18]} Rf1+ {[%emt 0:01:26]} 61. Ke5 {[%emt 0:02:07]} Rf2 {[%emt 0:00:42]} 62. Ra4 {[%emt 0:03:12]} Kg7 {[%emt 0:02:10]} 63. Ra7+ {[%emt 0:05:11]} Kg8 {[%emt 0:00:08]} 64. Ra6 {[%emt 0:00:43]} Kg7 {[%emt 0:00:25]} 65. Rg6+ {[%emt 0:07:26]} Kh7 {[%emt 0:00:53]} 66. Rb6 {[%emt 0:02:22]} Kg7 {[%emt 0:00:15]} 67. Rb7+ {[%emt 0:00:01]} Kg8 {[%emt 0:00:15]} 68. Ra7 {[%emt 0:00:58]} Rf1 {[%emt 0:00:17]} 69. Ke4 {[%emt 0:00:21]} Rf2 {[%emt 0:00:20]} 70. Ra3 {[%emt 0:00:35]} Kg7 {[%emt 0:00:35]} 71. Rf3 {[%emt 0:01:21]} Rxf3 {[%emt 0:01:11]} 72. Kxf3 {[%emt 0:00:04]} Kf7 {[%emt 0:00:08]} 73. Ke2 {[%emt 0:00:43]} Ke6 {[%emt 0:00:56]} 74. Kd3 {[%emt 0:00:39]} Kf7 {[%emt 0:00:47]} 75. Kd2 {[%emt 0:05:38]} Kf6 {[%emt 0:00:30]} 76. Ke3 {[%emt 0:00:37]} Ke7 {[%emt 0:00:04]} 77. Kf4 {[%emt 0:01:11]} Kf6 {[%emt 0:00:15]} 78. Kg3 {[%emt 0:00:05]} Kg7 {[%emt 0:00:06]} 79. Kg2 {[%emt 0:00:12]} Kg8 {[%emt 0:00:32]} 80. Kf1 {[%emt 0:00:58]} Kf7 {[%emt 0:00:13]} 81. Kg1 {[%emt 0:00:07]} Kg7 {[%emt 0:00:18]} 82. Kf2 {[%emt 0:00:20]} Kf6 {[%emt 0:00:23]} 83. Ke3 {[%emt 0:00:03]} Ke7 {[%emt 0:00:12]} 84. Kd2 {[%emt 0:01:12]} Kf6 {[%emt 0:00:43]} 85. Ke2 {[%emt 0:00:03]} Ke6 {[%emt 0:00:15]} 86. Kf3 {[%emt 0:00:17]} Kf7 {[%emt 0:00:09]} 87. Ke3 {[%emt 0:00:54]} Ke7 {[%emt 0:00:07]} 88. Kf4 {[%emt 0:00:09]} Kf6 {[%emt 0:00:07]} 89. Ke4 {[%emt 0:00:03]} Ke6 {[%emt 0:00:06]} 90. Kf4 {[%emt 0:00:18]} Kf6 {[%emt 0:00:06]} 91. Kg3 {[%emt 0:01:06]} Kg7 {[%emt 0:00:06]} 92. Kh4 {[%emt 0:00:08]} Kf6 {[%emt 0:01:12]} 93. Kh3 {[%emt 0:00:05]} Kf7 {[%emt 0:00:13]} 94. Kg3 {[%emt 0:00:14]} Kg7 {[%emt 0:00:06]} 95. Kh4 {[%emt 0:00:05]} Kf6 {[%emt 0:00:08]} 96. g5+ {[%emt 0:00:13]} hxg5+ {[%emt 0:00:08]} 97. Kg4 {[%emt 0:00:01]} Kg7 {[%emt 0:00:11]} 98. Kxg5 {[%emt 0:00:05]} Kh7 {[%emt 0:00:05]} 99. h6 {[%emt 0:00:07]} Kh8 {[%emt 0:00:10]} 100. Kh4 {[%emt 0:00:03]} Kh7 {[%emt 0:00:09]} 101. Kh5 {[%emt 0:00:02]} Kh8 {[%emt 0:00:07]} 102. Kg6 {[%emt 0:00:04]} Kg8 {[%emt 0:00:06]} 103. h7+ {[%emt 0:00:07]} Kh8 {[%emt 0:00:07]} 104. Kf7 {[%emt 0:00:04]} Kxh7 {[%emt 0:00:09]} 1/2-1/2

[Event "FIDE WYCC Open U14 2023"]
[Site "Montesilvano"]
[Date "2023.11.18"]
[Round "6.34"]
[White "Sharshenbekov, Emir"]
[Black "Sommer, Justus"]
[Result "*"]
[WhiteElo "1893"]
[BlackElo "2013"]
[Annotator "NA"]
[PlyCount "68"]
[EventDate "2023.11.13"]
[EventType "swiss"]
[EventCountry "ITA"]
[SourceTitle "playchess.com"]
[Source "ChessBase"]
[SourceQuality "1"]
[TimeControl "40/5400+30:1800+30"]

1. e4 {[%emt 0:00:08]} e5 {[%emt 0:00:11]} 2. Nf3 {[%emt 0:00:09]} Nc6 {[%emt 0:00:08]} 3. Nc3 {[%emt 0:00:10]} Nf6 {[%emt 0:00:16]} 4. Bb5 {[%emt 0:00:10]} Bb4 {[%emt 0:00:11]} 5. O-O {[%emt 0:00:36]} O-O {[%emt 0:00:16]} 6. d3 {[%emt 0:00:23]} d6 {[%emt 0:00:17]} 7. Bg5 {[%emt 0:00:20]} Bxc3 {[%emt 0:00:10]} 8. bxc3 {[%emt 0:00:15]} h6 {[%emt 0:00:34]} 9. Bh4 {[%emt 0:21:48]} Bg4 {[%emt 0:00:35]} 10. h3 {[%emt 0:00:05]} Bh5 {[%emt 0:00:07]} 11. Re1 {[%emt 0:03:40]} Na5 {[%emt 0:01:47]} 12. g4 {[%emt 0:09:39]} Bg6 {[%emt 0:00:34]} 13. d4 {[%emt 0:00:24]} Qe7 {[%emt 0:04:58]} 14. Nd2 {[%emt 0:02:05]} Bh7 {[%emt 0:06:46]} 15. f3 {[%emt 0:07:42]} c6 {[%emt 0:09:35]} 16. Bd3 {[%emt 0:04:43]} c5 {[%emt 0:08:47]} 17. Nb3 {[%emt 0:04:44]} Nxb3 {[%emt 0:05:32]} 18. axb3 {[%emt 0:00:13]} g5 {[%emt 0:12:17]} 19. Bf2 {[%emt 0:01:14]} Rfd8 {[%emt 0:04:34]} 20. Ra5 {[%emt 0:11:00]} Qc7 {[%emt 0:06:09]} 21. Qa1 {[%emt 0:00:35]} b6 {[%emt 0:00:23]} 22. Ra6 {[%emt 0:00:10]} Kg7 {[%emt 0:16:11]} 23. d5 {[%emt 0:01:47]} Nd7 {[%emt 0:02:03]} 24. Bb5 {[%emt 0:01:46]} Nb8 {[%emt 0:01:03]} 25. Ra4 {[%emt 0:00:11]} f6 {[%emt 0:02:47]} 26. Qa2 {[%emt 0:03:02]} Rf8 {[%emt 0:00:49]} 27. b4 {[%emt 0:01:54]} Bg6 {[%emt 0:01:40]} 28. Ra1 {[%emt 0:00:30]} Rf7 {[%emt 0:01:18]} 29. Rd1 {[%emt 0:00:31]} Re7 {[%emt 0:01:52]} 30. bxc5 {[%emt 0:02:16]} bxc5 {[%emt 0:00:08]} 31. Ra1 {[%emt 0:00:35]} Kf8 {[%emt 0:01:14]} 32. c4 {[%emt 0:05:59]} Be8 {[%emt 0:00:43]} 33. Bxe8 {[%emt 0:00:09]} Kxe8 {[%emt 0:00:12]} 34. Be1 {[%emt 0:00:18]} Qc8 {[%emt 0:01:54]} *

[Event "FIDE WYCC Open U14 2023"]
[Site "Montesilvano"]
[Date "2023.11.18"]
[Round "6.35"]
[White "Lira, Suan Bruno Fernandes"]
[Black "Georgiadis, Anastasios"]
[Result "*"]
[WhiteElo "1858"]
[BlackElo "2001"]
[Annotator "NA"]
[PlyCount "70"]
[EventDate "2023.11.13"]
[EventType "swiss"]
[EventCountry "ITA"]
[SourceTitle "playchess.com"]
[Source "ChessBase"]
[SourceQuality "1"]
[TimeControl "40/5400+30:1800+30"]

1. d4 {[%emt 0:00:03]} Nf6 {[%emt 0:00:05]} 2. c4 {[%emt 0:00:09]} e6 {[%emt 0:00:07]} 3. Nf3 {[%emt 0:00:19]} Bb4+ {[%emt 0:00:21]} 4. Nbd2 {[%emt 0:00:08]} O-O {[%emt 0:03:16]} 5. a3 {[%emt 0:00:46]} Bxd2+ {[%emt 0:00:11]} 6. Qxd2 {[%emt 0:01:42]} b6 {[%emt 0:00:55]} 7. e3 {[%emt 0:00:14]} Bb7 {[%emt 0:00:05]} 8. Be2 {[%emt 0:00:04]} d6 {[%emt 0:01:26]} 9. O-O {[%emt 0:00:54]} Nbd7 {[%emt 0:01:40]} 10. b4 {[%emt 0:01:56]} Ne4 {[%emt 0:07:43]} 11. Qc2 {[%emt 0:00:08]} f5 {[%emt 0:00:16]} 12. Bb2 {[%emt 0:00:39]} Qe7 {[%emt 0:04:09]} 13. Rad1 {[%emt 0:09:54]} Rae8 {[%emt 0:17:07]} 14. d5 {[%emt 0:12:19]} exd5 {[%emt 0:05:54]} 15. cxd5 {[%emt 0:00:22]} Ndf6 {[%emt 0:01:44]} 16. Bc4 {[%emt 0:06:45]} Bc8 {[%emt 0:15:36]} 17. Bb5 {[%emt 0:12:16]} Bd7 {[%emt 0:03:38]} 18. Nd4 {[%emt 0:03:36]} Bxb5 {[%emt 0:07:30]} 19. Nxb5 {[%emt 0:00:07]} a6 {[%emt 0:01:42]} 20. Nc3 {[%emt 0:05:02]} Nxc3 {[%emt 0:01:36]} 21. Qxc3 {[%emt 0:00:25]} Qd7 {[%emt 0:06:40]} 22. Qd3 {[%emt 0:09:27]} b5 {[%emt 0:02:53]} 23. Rc1 {[%emt 0:02:04]} Ng4 {[%emt 0:02:24]} 24. Rc6 {[%emt 0:02:08]} Ne5 {[%emt 0:00:05]} 25. Bxe5 {[%emt 0:00:05]} Rxe5 {[%emt 0:00:07]} 26. Rfc1 {[%emt 0:02:21]} Qf7 {[%emt 0:05:57]} 27. Rxc7 {[%emt 0:01:47]} Qxd5 {[%emt 0:00:08]} 28. Qc3 {[%emt 0:00:24]} Rfe8 {[%emt 0:01:47]} 29. Rd7 {[%emt 0:03:43]} R5e7 {[%emt 0:01:39]} 30. Rxe7 {[%emt 0:01:35]} Rxe7 {[%emt 0:00:26]} 31. Qc8+ {[%emt 0:00:05]} Kf7 {[%emt 0:00:07]} 32. Qxa6 {[%emt 0:00:21]} Qe5 {[%emt 0:01:02]} 33. g3 {[%emt 0:03:00]} Qd5 {[%emt 0:01:23]} 34. a4 {[%emt 0:04:08]} Qd2 {[%emt 0:01:17]} 35. Qc8 {[%emt 0:00:58]} Qd3 {[%emt 0:01:49]} *